[Event "HUN-ch U8-U18 2019"]
[Site "Balatonlelle"]
[Date "2019.06.21"]
[Round "2.20"]
[White "Szabo, Marton Nandor"]
[Black "Palczert, Matyas"]
[Result "0-1"]
[ECO "E06"]
[WhiteElo "1665"]
[BlackElo "2007"]
[Annotator "NA"]
[PlyCount "62"]
[EventDate "2019.06.21"]
[EventType "swiss"]
[EventCountry "HUN"]
[SourceTitle "playchess.com"]
[Source "ChessBase"]
[SourceQuality "1"]
[TimeControl "40/5400+30:1800+30"]

1. Nf3 {[%emt 0:00:04]} Nf6 {[%emt 0:01:45]} 2. c4 {[%emt 0:00:29]} e6 {[%emt 0:00:16]} 3. g3 {[%emt 0:00:05]} d5 {[%emt 0:00:34]} 4. d4 {[%emt 0:00:08]} Be7 {[%emt 0:00:16]} 5. Bg2 {[%emt 0:00:07]} O-O {[%emt 0:00:08]} 6. O-O {[%emt 0:00:21]} dxc4 {[%emt 0:00:04]} 7. Qc2 {[%emt 0:00:11]} a6 {[%emt 0:00:35]} 8. Qxc4 {[%emt 0:00:06]} b5 {[%emt 0:00:19]} 9. Qc2 {[%emt 0:00:08]} Bb7 {[%emt 0:00:17]} 10. Bg5 {[%emt 0:00:18]} Nbd7 {[%emt 0:02:37]} 11. Bxf6 {[%emt 0:00:21]} Nxf6 {[%emt 0:00:36]} 12. Nbd2 {[%emt 0:00:08]} Rc8 {[%emt 0:06:25]} 13. Nb3 {[%emt 0:00:14]} Be4 {[%emt 0:02:35]} 14. Qc1 {[%emt 0:00:10]} Bd5 {[%emt 0:03:01]} 15. Ne5 {[%emt 0:13:01]} Bxg2 {[%emt 0:01:16]} 16. Kxg2 {[%emt 0:00:03]} Qd5+ {[%emt 0:02:14]} 17. Nf3 {[%emt 0:00:12]} Ne4 {[%emt 0:08:26]} 18. Rd1 {[%emt 0:07:03]} g5 {[%emt 0:04:44]} 19. Kg1 {[%emt 0:09:46]} g4 {[%emt 0:01:22]} 20. Ne5 {[%emt 0:00:53]} Ng5 {[%emt 0:01:00]} 21. Qc6 {[%emt 0:00:15]} Qxc6 {[%emt 0:04:44]} 22. Nxc6 {[%emt 0:00:01]} Bd6 {[%emt 0:00:30]} 23. Nc5 {[%emt 0:02:32]} f5 {[%emt 0:03:46]} 24. Nxa6 {[%emt 0:06:26]} f4 {[%emt 0:00:45]} 25. Nc5 {[%emt 0:05:08]} fxg3 {[%emt 0:01:49]} 26. fxg3 Nh3+ {[%emt 0:00:29]} 27. Kg2 {[%emt 0:02:16]} Rf2+ {[%emt 0:00:24]} 28. Kh1 {[%emt 0:00:07]} Rcf8 {[%emt 0:01:04]} 29. Nxe6 {[%emt 0:04:37]} Rxh2+ {[%emt 0:00:56]} 30. Kxh2 {[%emt 0:00:16]} Rf2+ {[%emt 0:00:07]} 31. Kh1 {[%emt 0:00:14]} Bxg3 {[%emt 0:00:06]} 0-1

[Event "HUN-ch U8-U18 2019"]
[Site "Balatonlelle"]
[Date "2019.06.22"]
[Round "2.21"]
[White "Erseki, Tamara"]
[Black "Kovacs, Judit"]
[Result "1-0"]
[ECO "B19"]
[WhiteElo "1999"]
[BlackElo "2025"]
[Annotator "NA"]
[PlyCount "111"]
[EventDate "2019.06.21"]
[EventType "swiss"]
[EventCountry "HUN"]
[SourceTitle "playchess.com"]
[Source "ChessBase"]
[SourceQuality "1"]
[TimeControl "40/5400+30:1800+30"]

1. e4 {[%emt 0:00:02]} c6 {[%emt 0:00:05]} 2. Nc3 {[%emt 0:00:12]} d5 {[%emt 0:00:06]} 3. d4 {[%emt 0:00:09]} dxe4 {[%emt 0:00:20]} 4. Nxe4 {[%emt 0:00:07]} Bf5 {[%emt 0:00:09]} 5. Ng3 {[%emt 0:00:23]} Bg6 {[%emt 0:00:08]} 6. Nf3 {[%emt 0:02:05]} Nd7 {[%emt 0:01:37]} 7. h4 {[%emt 0:06:32]} h6 {[%emt 0:00:09]} 8. h5 {[%emt 0:04:36]} Bh7 {[%emt 0:00:06]} 9. Bd3 {[%emt 0:00:21]} Bxd3 {[%emt 0:00:11]} 10. Qxd3 {[%emt 0:00:04]} e6 {[%emt 0:00:14]} 11. Bf4 {[%emt 0:01:56]} Qa5+ {[%emt 0:08:37]} 12. Bd2 {[%emt 0:05:09]} Bb4 {[%emt 0:03:39]} 13. Ne4 {[%emt 0:03:04]} Bxd2+ {[%emt 0:11:54]} 14. Nfxd2 {[%emt 0:00:08]} Ngf6 {[%emt 0:48:51]} 15. Nd6+ {[%emt 0:02:59]} Ke7 {[%emt 0:04:05]} 16. O-O {[%emt 0:12:06]} b5 {[%emt 0:04:18]} 17. N2e4 {[%emt 0:04:50]} Nxe4 {[%emt 0:04:56]} 18. Nxe4 {[%emt 0:00:14]} Rhd8 {[%emt 0:01:01]} 19. Rae1 {[%emt 0:14:23]} Kf8 {[%emt 0:00:46]} 20. Qf3 {[%emt 0:07:14]} Qb4 {[%emt 0:02:09]} 21. c3 {[%emt 0:07:40]} Qe7 {[%emt 0:00:13]} 22. Qf4 {[%emt 0:00:54]} Nb6 {[%emt 0:01:50]} 23. Nc5 {[%emt 0:03:07]} Nd5 {[%emt 0:00:48]} 24. Qe4 {[%emt 0:04:28]} Kg8 {[%emt 0:02:37]} 25. f4 {[%emt 0:04:34]} Qh4 {[%emt 0:00:54]} 26. Qf3 {[%emt 0:00:59]} Ne7 {[%emt 0:01:35]} 27. g3 {[%emt 0:03:23]} Qf6 {[%emt 0:01:04]} 28. Ne4 {[%emt 0:00:12]} Qf5 {[%emt 0:00:05]} 29. g4 {[%emt 0:04:00]} Qd5 {[%emt 0:00:05]} 30. f5 {[%emt 0:02:28]} f6 {[%emt 0:01:27]} 31. fxe6 {[%emt 0:00:56]} Rf8 {[%emt 0:00:50]} 32. Nc5 {[%emt 0:01:18]} Qxf3 {[%emt 0:00:08]} 33. Rxf3 {[%emt 0:00:04]} a5 {[%emt 0:00:28]} 34. b3 {[%emt 0:01:31]} Rfd8 {[%emt 0:00:18]} 35. Rd3 {[%emt 0:01:51]} Kf8 {[%emt 0:01:09]} 36. Kf2 {[%emt 0:00:20]} Rd6 {[%emt 0:00:29]} 37. Kf3 {[%emt 0:02:13]} Ra7 {[%emt 0:00:08]} 38. c4 {[%emt 0:00:43]} Nc8 {[%emt 0:00:52]} 39. Rc1 {[%emt 0:01:21]} bxc4 {[%emt 0:00:19]} 40. bxc4 {[%emt 0:00:00]} Ke7 {[%emt 0:00:00]} 41. Rb1 {[%emt 0:05:54]} Rd8 {[%emt 0:03:59]} 42. Nb7 {[%emt 0:02:52]} Rf8 {[%emt 0:00:21]} 43. d5 {[%emt 0:01:21]} cxd5 {[%emt 0:00:51]} 44. cxd5 {[%emt 0:00:05]} Nd6 {[%emt 0:00:09]} 45. Nxd6 {[%emt 0:01:16]} Kxd6 {[%emt 0:00:07]} 46. Ke4 {[%emt 0:02:11]} a4 {[%emt 0:04:39]} 47. Rc3 {[%emt 0:01:54]} a3 {[%emt 0:00:54]} 48. Rb6+ {[%emt 0:03:59]} Ke7 {[%emt 0:00:07]} 49. Kf5 {[%emt 0:04:25]} Rd8 {[%emt 0:02:31]} 50. Rc5 {[%emt 0:00:09]} Rd6 {[%emt 0:02:25]} 51. Rbc6 {[%emt 0:03:06]} Rxc6 {[%emt 0:05:23]} 52. Rxc6 {[%emt 0:00:04]} Ra5 {[%emt 0:00:07]} 53. Rc7+ {[%emt 0:00:19]} Kf8 {[%emt 0:00:07]} 54. Rd7 {[%emt 0:01:02]} Rb5 {[%emt 0:00:24]} 55. Kg6 {[%emt 0:02:25]} Rb2 {[%emt 0:01:16]} 56. d6 {[%emt 0:00:48]} 1-0

[Event "HUN-ch U8-U18 2019"]
[Site "Balatonlelle"]
[Date "2019.06.21"]
[Round "2.21"]
[White "Kolimar, Kristof Pal"]
[Black "Gulacsi, Donat Ferenc"]
[Result "0-1"]
[ECO "A06"]
[WhiteElo "1979"]
[BlackElo "1638"]
[Annotator "NA"]
[PlyCount "78"]
[EventDate "2019.06.21"]
[EventType "swiss"]
[EventCountry "HUN"]
[SourceTitle "playchess.com"]
[Source "ChessBase"]
[SourceQuality "1"]
[TimeControl "40/5400+30:1800+30"]

1. Nf3 {[%emt 0:00:03]} d5 {[%emt 0:00:08]} 2. c4 {[%emt 0:00:05]} c6 {[%emt 0:02:00]} 3. d4 {[%emt 0:00:11]} Nf6 {[%emt 0:00:56]} 4. Qc2 {[%emt 0:00:42]} Bg4 {[%emt 0:02:10]} 5. Ne5 {[%emt 0:02:39]} Bh5 {[%emt 0:01:02]} 6. cxd5 {[%emt 0:02:03]} cxd5 {[%emt 0:01:13]} 7. Nc3 {[%emt 0:00:08]} e6 {[%emt 0:01:47]} 8. e4 {[%emt 0:03:46]} Be7 {[%emt 0:05:33]} 9. Bb5+ {[%emt 0:06:54]} Nbd7 {[%emt 0:00:27]} 10. exd5 {[%emt 0:04:18]} exd5 {[%emt 0:01:13]} 11. Nxd5 {[%emt 0:04:38]} O-O {[%emt 0:01:47]} 12. Nxd7 {[%emt 0:03:45]} Nxd7 {[%emt 0:00:12]} 13. O-O {[%emt 0:00:16]} Nf6 {[%emt 0:06:15]} 14. Nxe7+ {[%emt 0:06:10]} Qxe7 {[%emt 0:00:06]} 15. Be3 {[%emt 0:00:24]} Ng4 {[%emt 0:08:34]} 16. Bf4 {[%emt 0:06:06]} Qb4 {[%emt 0:04:29]} 17. Qc5 {[%emt 0:02:09]} Qxc5 {[%emt 0:02:46]} 18. dxc5 {[%emt 0:00:04]} Nf6 {[%emt 0:00:35]} 19. Rac1 {[%emt 0:03:13]} Rac8 {[%emt 0:01:34]} 20. Bd6 {[%emt 0:02:12]} Rfd8 {[%emt 0:02:06]} 21. Rfe1 {[%emt 0:01:17]} Bg4 {[%emt 0:04:02]} 22. Re7 {[%emt 0:03:03]} Rxd6 {[%emt 0:00:52]} 23. h3 {[%emt 0:04:18]} Bd7 {[%emt 0:08:21]} 24. Rce1 {[%emt 0:05:56]} Rd4 {[%emt 0:08:29]} 25. a4 {[%emt 0:02:26]} Kf8 {[%emt 0:01:18]} 26. R1e5 {[%emt 0:11:27]} Bxb5 {[%emt 0:03:56]} 27. axb5 {[%emt 0:00:06]} Rxc5 {[%emt 0:00:40]} 28. Rxf7+ {[%emt 0:00:56]} Kxf7 {[%emt 0:00:08]} 29. Rxc5 {[%emt 0:00:03]} Ke6 {[%emt 0:00:50]} 30. Rc7 {[%emt 0:00:06]} Rd7 {[%emt 0:00:06]} 31. Rc8 {[%emt 0:00:16]} Rd5 {[%emt 0:00:36]} 32. Rc7 {[%emt 0:00:09]} Rxb5 {[%emt 0:00:47]} 33. Rxg7 {[%emt 0:00:06]} Rxb2 {[%emt 0:00:11]} 34. g4 {[%emt 0:00:04]} a5 {[%emt 0:01:31]} 35. g5 {[%emt 0:00:30]} a4 {[%emt 0:03:04]} 36. gxf6 {[%emt 0:01:08]} a3 {[%emt 0:00:57]} 37. f7 {[%emt 0:01:05]} Ke7 {[%emt 0:00:06]} 38. Kh2 {[%emt 0:01:43]} a2 {[%emt 0:02:06]} 39. Rg1 {[%emt 0:00:17]} Rb1 {[%emt 0:00:08]} 0-1

[Event "HUN-ch U8-U18 2019"]
[Site "Balatonlelle"]
[Date "2019.06.21"]
[Round "2.22"]
[White "Marjanovic, Alex"]
[Black "Bodrogi, Bendeguz"]
[Result "0-1"]
[ECO "B29"]
[WhiteElo "1629"]
[BlackElo "1925"]
[Annotator "NA"]
[PlyCount "70"]
[EventDate "2019.06.21"]
[EventType "swiss"]
[EventCountry "HUN"]
[SourceTitle "playchess.com"]
[Source "ChessBase"]
[SourceQuality "1"]
[TimeControl "40/5400+30:1800+30"]

1. e4 {[%emt 0:00:02]} c5 {[%emt 0:00:26]} 2. Nf3 {[%emt 0:00:15]} Nf6 {[%emt 0:00:44]} 3. e5 {[%emt 0:00:34]} Nd5 {[%emt 0:00:37]} 4. g3 {[%emt 0:00:39]} Nc6 {[%emt 0:01:22]} 5. Bg2 {[%emt 0:00:31]} d6 {[%emt 0:06:44]} 6. exd6 {[%emt 0:00:59]} exd6 {[%emt 0:03:00]} 7. O-O {[%emt 0:02:01]} Be7 {[%emt 0:01:55]} 8. Re1 {[%emt 0:02:30]} O-O {[%emt 0:00:55]} 9. d4 {[%emt 0:00:58]} Bf6 {[%emt 0:01:53]} 10. dxc5 {[%emt 0:05:13]} dxc5 {[%emt 0:00:43]} 11. Bg5 {[%emt 0:10:17]} Ndb4 {[%emt 0:07:49]} 12. Qxd8 {[%emt 0:05:11]} Bxd8 {[%emt 0:07:00]} 13. Na3 Bg4 {[%emt 0:04:15]} 14. Bxd8 {[%emt 0:07:13]} Raxd8 {[%emt 0:00:51]} 15. Ne5 {[%emt 0:03:58]} Nxe5 {[%emt 0:04:30]} 16. Rxe5 {[%emt 0:00:22]} b6 {[%emt 0:00:06]} 17. f3 {[%emt 0:03:05]} Be6 {[%emt 0:00:54]} 18. Re2 {[%emt 0:02:10]} Rd7 {[%emt 0:03:23]} 19. c3 {[%emt 0:12:43]} Nd3 {[%emt 0:01:26]} 20. Rd2 {[%emt 0:03:56]} Rfd8 {[%emt 0:01:08]} 21. f4 {[%emt 0:05:20]} g6 {[%emt 0:08:27]} 22. Bc6 {[%emt 0:10:47]} Rd6 {[%emt 0:01:04]} 23. Bb5 {[%emt 0:01:30]} Nxf4 {[%emt 0:00:57]} 24. Rxd6 {[%emt 0:00:24]} Nh3+ {[%emt 0:00:02]} 25. Kg2 {[%emt 0:03:22]} Rxd6 {[%emt 0:00:15]} 26. Nc4 {[%emt 0:01:15]} Rd8 {[%emt 0:07:23]} 27. Re1 {[%emt 0:02:28]} Ng5 {[%emt 0:00:22]} 28. Re2 {[%emt 0:01:48]} h5 {[%emt 0:07:03]} 29. h4 Ne4 {[%emt 0:04:07]} 30. Kh2 {[%emt 0:02:41]} Nf6 {[%emt 0:01:12]} 31. Kg2 {[%emt 0:03:17]} Ng4 {[%emt 0:01:05]} 32. Ne3 {[%emt 0:02:42]} Nxe3+ {[%emt 0:00:50]} 33. Rxe3 {[%emt 0:00:08]} Rd2+ {[%emt 0:00:12]} 34. Re2 {[%emt 0:00:12]} Rxe2+ {[%emt 0:00:19]} 35. Bxe2 {[%emt 0:00:06]} Bxa2 {[%emt 0:00:05]} 0-1

[Event "HUN-ch U8-U18 2019"]
[Site "Balatonlelle"]
[Date "2019.06.22"]
[Round "2.22"]
[White "Buri, Kata"]
[Black "Toth, Nikoletta"]
[Result "1-0"]
[ECO "B30"]
[WhiteElo "1393"]
[BlackElo "2010"]
[Annotator "NA"]
[PlyCount "63"]
[EventDate "2019.06.21"]
[EventType "swiss"]
[EventCountry "HUN"]
[SourceTitle "playchess.com"]
[Source "ChessBase"]
[SourceQuality "1"]
[TimeControl "40/5400+30:1800+30"]

1. e4 {[%emt 0:00:03]} c5 {[%emt 0:00:05]} 2. Nf3 {[%emt 0:00:11]} Nc6 {[%emt 0:00:07]} 3. Bb5 {[%emt 0:00:13]} Qc7 {[%emt 0:04:42]} 4. O-O {[%emt 0:03:28]} a6 {[%emt 0:01:07]} 5. Bxc6 {[%emt 0:01:54]} dxc6 {[%emt 0:00:05]} 6. a4 {[%emt 0:01:37]} a5 {[%emt 0:07:47]} 7. d4 {[%emt 0:00:31]} cxd4 {[%emt 0:00:10]} 8. Qxd4 {[%emt 0:00:13]} Nf6 {[%emt 0:14:46]} 9. e5 {[%emt 0:07:14]} Nd5 {[%emt 0:01:55]} 10. Na3 {[%emt 0:05:46]} e6 {[%emt 0:03:48]} 11. Nc4 {[%emt 0:01:42]} c5 {[%emt 0:24:27]} 12. Qg4 {[%emt 0:05:42]} g6 {[%emt 0:01:25]} 13. Bg5 {[%emt 0:03:18]} b6 {[%emt 0:03:49]} 14. Rfd1 {[%emt 0:00:41]} h6 {[%emt 0:04:02]} 15. Bf4 {[%emt 0:04:30]} h5 {[%emt 0:03:51]} 16. Qg3 {[%emt 0:01:53]} Nxf4 {[%emt 0:00:35]} 17. Qxf4 {[%emt 0:04:24]} Bh6 {[%emt 0:00:07]} 18. Qf6 {[%emt 0:02:25]} O-O {[%emt 0:00:24]} 19. Rd6 {[%emt 0:00:45]} Bb7 {[%emt 0:06:24]} 20. Nxb6 {[%emt 0:05:11]} Rad8 {[%emt 0:03:47]} 21. Rad1 {[%emt 0:00:47]} Bg7 {[%emt 0:10:08]} 22. Qg5 {[%emt 0:00:47]} Bxf3 {[%emt 0:04:28]} 23. gxf3 {[%emt 0:00:07]} Rxd6 {[%emt 0:00:07]} 24. Rxd6 {[%emt 0:00:07]} Rb8 {[%emt 0:00:44]} 25. Nd7 {[%emt 0:00:24]} Rxb2 {[%emt 0:02:12]} 26. Qe7 {[%emt 0:01:02]} Rb7 {[%emt 0:00:40]} 27. Qe8+ {[%emt 0:00:45]} Kh7 {[%emt 0:00:16]} 28. Qxf7 {[%emt 0:00:14]} Kh6 {[%emt 0:00:15]} 29. Qf4+ {[%emt 0:00:13]} Kh7 {[%emt 0:00:25]} 30. Qf7 {[%emt 0:00:15]} Kh6 {[%emt 0:00:46]} 31. Qxe6 {[%emt 0:00:09]} Kh7 {[%emt 0:00:39]} 32. Qxg6+ {[%emt 0:01:51]} 1-0

[Event "HUN-ch U8-U18 2019"]
[Site "Balatonlelle"]
[Date "2019.06.21"]
[Round "2.23"]
[White "Magold, Filip"]
[Black "Kasnya, Peter"]
[Result "1-0"]
[ECO "B28"]
[WhiteElo "1906"]
[BlackElo "1496"]
[Annotator "NA"]
[PlyCount "95"]
[EventDate "2019.06.21"]
[EventType "swiss"]
[EventCountry "HUN"]
[SourceTitle "playchess.com"]
[Source "ChessBase"]
[SourceQuality "1"]
[TimeControl "40/5400+30:1800+30"]

1. e4 {[%emt 0:00:05]} c5 {[%emt 0:00:08]} 2. Nf3 {[%emt 0:00:05]} a6 {[%emt 0:00:10]} 3. d4 {[%emt 0:00:05]} cxd4 {[%emt 0:00:05]} 4. Nxd4 {[%emt 0:00:04]} Nf6 {[%emt 0:00:08]} 5. Nc3 {[%emt 0:00:05]} e5 {[%emt 0:00:12]} 6. Nde2 {[%emt 0:01:28]} Bb4 {[%emt 0:02:06]} 7. Bg5 {[%emt 0:00:23]} O-O {[%emt 0:02:29]} 8. a3 {[%emt 0:03:21]} Be7 {[%emt 0:00:51]} 9. Bxf6 {[%emt 0:02:36]} Bxf6 {[%emt 0:00:28]} 10. Nd5 {[%emt 0:00:25]} b5 {[%emt 0:02:42]} 11. c3 {[%emt 0:00:18]} Bb7 {[%emt 0:00:23]} 12. Ng3 {[%emt 0:00:50]} d6 {[%emt 0:00:43]} 13. Be2 {[%emt 0:04:43]} Bxd5 {[%emt 0:06:10]} 14. Qxd5 {[%emt 0:00:08]} Ra7 {[%emt 0:01:15]} 15. Rd1 {[%emt 0:02:05]} Rd7 {[%emt 0:02:24]} 16. Bg4 {[%emt 0:01:27]} Rc7 {[%emt 0:02:51]} 17. Qxd6 {[%emt 0:00:53]} Qxd6 {[%emt 0:00:08]} 18. Rxd6 {[%emt 0:00:04]} Bg5 {[%emt 0:00:48]} 19. O-O {[%emt 0:00:23]} Nc6 {[%emt 0:02:48]} 20. Rfd1 {[%emt 0:02:13]} Rd8 {[%emt 0:05:26]} 21. Rxd8+ {[%emt 0:03:58]} Bxd8 {[%emt 0:01:58]} 22. Bd7 {[%emt 0:01:35]} Bf6 {[%emt 0:02:24]} 23. Rd6 {[%emt 0:01:24]} Nb8 {[%emt 0:00:46]} 24. Bg4 {[%emt 0:00:32]} Be7 {[%emt 0:00:45]} 25. Rb6 {[%emt 0:00:21]} Nd7 {[%emt 0:01:18]} 26. Rxa6 {[%emt 0:00:35]} Nf6 {[%emt 0:00:47]} 27. Be2 {[%emt 0:00:20]} Rb7 {[%emt 0:01:07]} 28. Ra8+ {[%emt 0:01:30]} Bf8 {[%emt 0:00:19]} 29. Bd3 {[%emt 0:00:56]} Nd7 {[%emt 0:00:39]} 30. Kf1 {[%emt 0:00:55]} Nc5 {[%emt 0:00:13]} 31. Bc2 {[%emt 0:00:10]} g6 {[%emt 0:00:44]} 32. Ne2 {[%emt 0:00:46]} Rd7 {[%emt 0:00:38]} 33. Ke1 {[%emt 0:00:10]} Kg7 {[%emt 0:00:46]} 34. Ng1 {[%emt 0:00:49]} Ne6 {[%emt 0:03:14]} 35. g3 {[%emt 0:00:37]} Bc5 {[%emt 0:00:41]} 36. Nf3 {[%emt 0:00:10]} f6 {[%emt 0:01:19]} 37. Rc8 {[%emt 0:01:19]} Ba7 {[%emt 0:01:26]} 38. Rc6 {[%emt 0:00:36]} Nd8 {[%emt 0:00:33]} 39. Rc8 {[%emt 0:00:23]} Ne6 {[%emt 0:00:08]} 40. Ke2 {[%emt 0:00:00]} h5 {[%emt 0:00:00]} 41. b4 {[%emt 0:08:39]} Kh7 {[%emt 0:10:42]} 42. Rc6 {[%emt 0:01:01]} Ng5 {[%emt 0:04:45]} 43. Nxg5+ {[%emt 0:04:31]} fxg5 {[%emt 0:00:19]} 44. Bb3 {[%emt 0:00:03]} h4 {[%emt 0:00:44]} 45. Rc8 {[%emt 0:01:07]} h3 {[%emt 0:01:05]} 46. Be6 {[%emt 0:00:07]} Re7 {[%emt 0:00:19]} 47. Bxh3 {[%emt 0:00:03]} Rf7 {[%emt 0:00:51]} 48. f3 {[%emt 0:00:08]} 1-0

[Event "HUN-ch U8-U18 2019"]
[Site "Balatonlelle"]
[Date "2019.06.22"]
[Round "2.23"]
[White "Sulyok, Eszter"]
[Black "Farkas, Boglarka"]
[Result "1-0"]
[ECO "A20"]
[WhiteElo "1840"]
[BlackElo "1392"]
[Annotator "NA"]
[PlyCount "75"]
[EventDate "2019.06.21"]
[EventType "swiss"]
[EventCountry "HUN"]
[SourceTitle "playchess.com"]
[Source "ChessBase"]
[SourceQuality "1"]
[TimeControl "40/5400+30:1800+30"]

1. c4 {[%emt 0:00:06]} e5 {[%emt 0:00:14]} 2. e3 {[%emt 0:00:06]} Nf6 {[%emt 0:00:14]} 3. a3 {[%emt 0:00:05]} c6 {[%emt 0:01:08]} 4. d4 {[%emt 0:00:31]} exd4 {[%emt 0:01:43]} 5. Qxd4 {[%emt 0:00:07]} d5 {[%emt 0:00:57]} 6. Nf3 {[%emt 0:00:43]} h6 {[%emt 0:04:09]} 7. Nc3 {[%emt 0:00:46]} Be6 {[%emt 0:01:20]} 8. cxd5 {[%emt 0:01:19]} Nxd5 {[%emt 0:02:48]} 9. e4 {[%emt 0:02:39]} Nxc3 {[%emt 0:05:27]} 10. Qxc3 {[%emt 0:00:13]} Nd7 {[%emt 0:00:33]} 11. Bf4 {[%emt 0:03:22]} Nf6 {[%emt 0:07:39]} 12. Bd3 {[%emt 0:01:51]} Be7 {[%emt 0:09:55]} 13. h3 {[%emt 0:02:39]} O-O {[%emt 0:01:20]} 14. O-O {[%emt 0:01:16]} Qb6 {[%emt 0:04:18]} 15. Be3 {[%emt 0:03:18]} Qb3 {[%emt 0:04:07]} 16. Qxb3 {[%emt 0:04:12]} Bxb3 {[%emt 0:00:27]} 17. Nd4 {[%emt 0:01:17]} Rfd8 {[%emt 0:05:20]} 18. Be2 {[%emt 0:01:57]} Rxd4 {[%emt 0:07:23]} 19. Bxd4 {[%emt 0:00:29]} Nxe4 {[%emt 0:00:16]} 20. Rfe1 {[%emt 0:01:20]} c5 {[%emt 0:01:28]} 21. Be3 {[%emt 0:08:32]} Bf6 {[%emt 0:03:31]} 22. Bf3 {[%emt 0:02:03]} Bxb2 {[%emt 0:04:55]} 23. Rab1 {[%emt 0:00:55]} Bc3 {[%emt 0:02:31]} 24. Rec1 {[%emt 0:00:28]} Bd2 {[%emt 0:01:11]} 25. Rxb3 {[%emt 0:03:27]} Bxc1 {[%emt 0:01:55]} 26. Bxe4 {[%emt 0:00:24]} Bxe3 {[%emt 0:00:20]} 27. fxe3 {[%emt 0:00:24]} Rb8 {[%emt 0:00:56]} 28. Rxb7 {[%emt 0:00:59]} Rxb7 {[%emt 0:00:15]} 29. Bxb7 {[%emt 0:00:05]} Kf8 {[%emt 0:00:26]} 30. Kf1 {[%emt 0:00:11]} Ke7 {[%emt 0:00:22]} 31. Ke2 {[%emt 0:00:11]} Kd7 {[%emt 0:01:16]} 32. Kd3 {[%emt 0:00:24]} Kc7 {[%emt 0:00:32]} 33. Be4 {[%emt 0:00:38]} f6 {[%emt 0:02:03]} 34. Kc4 {[%emt 0:00:08]} Kb6 {[%emt 0:00:58]} 35. g3 {[%emt 0:01:24]} g5 {[%emt 0:02:18]} 36. g4 {[%emt 0:00:14]} a6 {[%emt 0:00:31]} 37. Bd5 {[%emt 0:00:53]} a5 {[%emt 0:00:51]} 38. a4 {[%emt 0:00:05]} 1-0

[Event "HUN-ch U8-U18 2019"]
[Site "Balatonlelle"]
[Date "2019.06.22"]
[Round "2.24"]
[White "Toth, Gergely"]
[Black "Megyaszai, Balazs"]
[Result "1-0"]
[ECO "B84"]
[WhiteElo "2183"]
[BlackElo "1905"]
[Annotator "NA"]
[PlyCount "105"]
[EventDate "2019.06.21"]
[EventType "swiss"]
[EventCountry "HUN"]
[SourceTitle "playchess.com"]
[Source "ChessBase"]
[SourceQuality "1"]
[TimeControl "40/5400+30:1800+30"]

1. e4 {[%emt 0:00:03]} c5 {[%emt 0:00:58]} 2. Nf3 {[%emt 0:00:29]} d6 {[%emt 0:01:39]} 3. d4 {[%emt 0:01:40]} cxd4 {[%emt 0:01:48]} 4. Nxd4 {[%emt 0:00:51]} Nf6 {[%emt 0:02:10]} 5. Nc3 {[%emt 0:00:20]} a6 {[%emt 0:02:06]} 6. Be2 {[%emt 0:02:11]} e6 {[%emt 0:09:43]} 7. Be3 {[%emt 0:02:25]} Be7 {[%emt 0:03:57]} 8. O-O {[%emt 0:02:20]} Qc7 {[%emt 0:10:13]} 9. f4 {[%emt 0:02:58]} Nc6 {[%emt 0:08:33]} 10. Qd2 {[%emt 0:12:46]} O-O {[%emt 0:13:56]} 11. Bf3 {[%emt 0:03:27]} Bd7 {[%emt 0:02:51]} 12. Qf2 {[%emt 0:01:00]} Rac8 {[%emt 0:05:11]} 13. Rad1 {[%emt 0:07:51]} b5 {[%emt 0:05:30]} 14. a3 {[%emt 0:00:46]} Qb8 {[%emt 0:01:39]} 15. Nce2 {[%emt 0:06:15]} Rfd8 {[%emt 0:04:05]} 16. c3 {[%emt 0:01:59]} e5 {[%emt 0:03:09]} 17. Nxc6 {[%emt 0:03:27]} Bxc6 {[%emt 0:00:47]} 18. Ng3 {[%emt 0:00:23]} Qb7 {[%emt 0:02:43]} 19. Qc2 {[%emt 0:01:01]} a5 {[%emt 0:01:35]} 20. b4 {[%emt 0:01:35]} a4 {[%emt 0:00:24]} 21. f5 {[%emt 0:00:54]} d5 {[%emt 0:01:31]} 22. Bg5 {[%emt 0:03:23]} Qa7+ {[%emt 0:04:22]} 23. Kh1 {[%emt 0:00:42]} dxe4 {[%emt 0:03:06]} 24. Rxd8+ {[%emt 0:05:08]} Rxd8 {[%emt 0:00:44]} 25. Nxe4 {[%emt 0:02:47]} Nxe4 {[%emt 0:04:37]} 26. Bxe7 {[%emt 0:01:26]} Rd2 {[%emt 0:01:11]} 27. Bc5 {[%emt 0:00:17]} Qxc5 {[%emt 0:01:51]} 28. Qxd2 {[%emt 0:00:20]} Nxd2 {[%emt 0:02:17]} 29. bxc5 {[%emt 0:00:17]} e4 {[%emt 0:00:28]} 30. Rd1 {[%emt 0:01:29]} exf3 {[%emt 0:00:22]} 31. Rxd2 {[%emt 0:00:26]} fxg2+ {[%emt 0:00:26]} 32. Kg1 {[%emt 0:00:18]} Kf8 {[%emt 0:00:31]} 33. Rd6 {[%emt 0:00:27]} Be4 {[%emt 0:00:22]} 34. Rb6 {[%emt 0:02:11]} Ke7 {[%emt 0:00:30]} 35. Rxb5 {[%emt 0:00:44]} Kd7 {[%emt 0:00:25]} 36. Rb4 {[%emt 0:02:05]} Bc6 {[%emt 0:00:16]} 37. Rg4 {[%emt 0:01:31]} g6 {[%emt 0:00:33]} 38. fxg6 {[%emt 0:00:47]} hxg6 {[%emt 0:00:42]} 39. Rf4 {[%emt 0:00:31]} Ke7 {[%emt 0:01:09]} 40. Rd4 {[%emt 0:00:00]} g5 {[%emt 0:00:00]} 41. Rd6 {[%emt 0:01:04]} Be4 {[%emt 0:02:44]} 42. Ra6 {[%emt 0:00:48]} f5 {[%emt 0:09:18]} 43. Rxa4 {[%emt 0:00:19]} Bc6 {[%emt 0:01:45]} 44. Rb4 {[%emt 0:00:55]} Kd7 {[%emt 0:01:17]} 45. a4 {[%emt 0:00:23]} Kc7 {[%emt 0:00:57]} 46. a5 {[%emt 0:00:30]} f4 {[%emt 0:00:30]} 47. a6 {[%emt 0:01:11]} f3 {[%emt 0:00:24]} 48. Rb6 {[%emt 0:04:38]} g4 {[%emt 0:00:45]} 49. a7 {[%emt 0:00:34]} Bb7 {[%emt 0:00:34]} 50. Rg6 {[%emt 0:00:54]} Ba8 {[%emt 0:01:04]} 51. Rg8 {[%emt 0:00:47]} Kb7 {[%emt 0:00:21]} 52. c6+ {[%emt 0:00:09]} Kxa7 {[%emt 0:00:15]} 53. c7 {[%emt 0:00:06]} 1-0